Cogmind - Beta 9.1 @@@ ROGUE MODE // 2019.10.29 @ 22:59:56 Player: MrPainting Result: Self-destructed Performance ------------- Evolutions (2) 1000 Regions Visited (4) 800 Robots Destroyed (43) 215 Value Destroyed (879) 879 Prototype IDs (0) 0 Alien Tech Used (0) 0 Bonus (-322) -322 TOTAL SCORE: 2572 Bonus ------- Follower Combat Kills 81 Friendly Fire -403 Cogmind --------- Core Integrity 532/550 Matter 6/300 Energy 100/100 System Corruption 0% Temperature Cool (0) Location -8/Materials Parts ------- Power (1) Propulsion (4) Light Treads Light Treads Utility (4) Large Storage Unit Large Storage Unit Advanced Sensor Array Weapon (2) Inventory (16) Light Nuclear Core Light Treads Improved Heat Sink Sensor Array Signal Interpreter Propulsion Shielding Heavy Armor Plating Long-range Tractor Beam Assault Cannon Assault Cannon Mini Grenade Launcher Peak State ------------ Power Light Nuclear Core Propulsion Light Treads Light Treads Light Treads Utility Large Storage Unit Large Storage Unit Improved Utility Shielding Weapon Assault Cannon Assault Cannon Inventory Light Nuclear Core Light Treads Improved Heat Sink Sensor Array Advanced Sensor Array Signal Interpreter Propulsion Shielding Assault Cannon Assault Cannon Mini Grenade Launcher [Rating: 19] Favorites ----------- Power Light Nuclear Core Engine Ion Engine Power Core Light Nuclear Core Propulsion Light Treads Treads Light Treads Leg Aluminum Leg Utility Large Storage Unit Device Improved Heat Sink Storage Large Storage Unit Protection Light Armor Plating Weapon Mining Laser Ballistic Gun Assault Rifle Ballistic Cannon Assault Cannon Launcher Grenade Launcher Special Weapon Mining Laser Build | -11 -10 -10 -9 -8 ------- Run | Scr Mat Min Mat Mat Slots Evolved 4 | . . . 2 2 Power . | . . . . . Propulsion 2 | . . . 1 1 Utility 2 | . . . 1 1 Weapon . | . . . . . Parts Attached 31 | 6 11 3 8 3 Power 3 | 1 1 1 . . Engine 1 | 1 . . . . Core 2 | . 1 1 . . Reactor . | . . . . . Propulsion 11 | 2 3 . 4 2 Treads 7 | . 2 . 3 2 Leg 4 | 2 1 . 1 . Wheel . | . . . . . Hover . | . . . . . Flight . | . . . . . Utility 7 | 1 3 . 2 1 Device 2 | . 1 . . 1 Storage 3 | 1 1 . 1 . Processor . | . . . . . Hackware . | . . . . . Protection 2 | . 1 . 1 . Artifact . | . . . . . Weapon 10 | 2 4 2 2 . Energy Gun . | . . . . . Energy Cannon . | . . . . . Ballistic Gun 3 | 2 1 . . . Ballistic Cannon 2 | . . . 2 . Launcher 3 | . 1 2 . . Special Weapon 2 | . 2 . . . Impact Weapon . | . . . . . Slashing Weapon . | . . . . . Piercing Weapon . | . . . . . Special Melee Weapon . | . . . . . Unidentified Prototypes . | . . . . . Parts Lost 13 | . 5 1 7 . Power 2 | . 1 . 1 . Propulsion 4 | . 1 . 3 . Utility 1 | . . . 1 . Weapon 6 | . 3 1 2 . Highest Loss Streak 6 | . 2 1 6 . Average Slot Usage (%) 88 | . 79 100 85 45 Engine 2 | . 8 . . . Core 10 | . 5 14 9 . Treads 22 | . 5 28 28 18 Leg 5 | . 20 . . . Storage 15 | . 14 14 18 18 Protection 7 | . . 14 6 . Ballistic Gun 3 | . 14 . . . Ballistic Cannon 5 | . . . 19 . Launcher 5 | . 2 11 1 . Special Weapon 8 | . 5 16 . . Naked Turns . | . . . . . Heaviest Build 49 | 12 26 28 49 33 Greatest Support 60 | 20 40 40 60 40 Greatest Overweight (x) 12 | 3 2 . 12 . Average Overweight (x) . | 1 . . . . Largest Inventory Capacity 16 | 6 10 10 16 16 Average Capacity 10 | 5 9 10 14 16 Most Carried 15 | 5 7 10 15 14 Average Carried 8 | 2 4 9 12 12 Final Capacity 16 | 6 10 10 16 16 Final Carried 15 | 2 7 10 15 12 Class Distribution -------------------- 100% | Mutant Dominant Class ---------------- Mutant | -10/Materials Mutant | -10/Mines Mutant | -9/Materials Mutant | -8/Materials Resources | -11 -10 -10 -9 -8 ----------- Run | Scr Mat Min Mat Mat Matter Collected 1029 | 111 321 321 276 . Remotely . | . . . . . Salvage Created 1012 | . 464 39 509 . Parts 78 | . 32 1 45 . Haulers Intercepted 3 | . 1 . 2 . Recyclers Shooed . | . . . . . Parts Field Recycled . | . . . . . Retrieved Matter . | . . . . . Parts Self-Destructed . | . . . . . Prevented . | . . . . . Kills | -11 -10 -10 -9 -8 ------- Run | Scr Mat Min Mat Mat Combat Hostiles Destroyed 30 | . 12 5 13 . Guns 10 | . 10 . . . Cannons 12 | . . . 12 . AOE 8 | . 2 5 1 . Classes Destroyed 7 | . 5 1 1 . Builder 3 | . 1 . 2 . Hauler 3 | . 1 . 2 . Watcher 5 | . 3 . 2 . Swarmer 6 | . 3 . 3 . Grunt 17 | . 9 1 7 . Sentry 3 | . . . 3 . Assembled 5 | . . 5 . . Thug 1 | . . . 1 . Best Kill Streak 6 | . 3 5 6 . Combat Bots Only 6 | . 3 5 6 . Max Kills in Single Turn 3 | . 1 3 2 . Gunslinging . | . . . . . Exploded 2 | . 1 2 1 . Melee . | . . . . . Uniques/NPCs Destroyed . | . . . . . Combat | -11 -10 -10 -9 -8 -------- Run | Scr Mat Min Mat Mat Damage Taken 2362 | . 853 106 1385 18 Core 531 | . 220 . 293 18 Absorbed by Shields . | . . . . . Core Remaining (%) 46 | 100 . 12 26 . Volleys Fired 151 | 1 95 6 49 . Largest 2 | 1 2 2 2 . Hottest 200 | 20 200 200 88 . Shots Fired 236 | 1 127 10 98 . Gun 115 | 1 114 . . . Cannon 97 | . . . 97 . Launcher 16 | . 11 4 1 . Special 8 | . 2 6 . . Kinetic 212 | 1 114 . 97 . Thermal 8 | . 2 6 . . Explosive 16 | . 11 4 1 . Electromagnetic . | . . . . . Robot Hit Streak 8 | 1 6 3 8 . Robot Miss Streak 5 | . 4 3 5 . Penetration Max . | . . . . . Secondary Targets 1 | . 1 . . . Max Gunslinging Chain 1 | . 1 . . . Shots Hit Robots 126 | 1 70 4 51 . Core Hits 63 | 1 32 8 22 . Critical Hits 1 | . . . 1 . Critical Kills . | . . . . . Critical Parts Destroyed 1 | . . . 1 . Melee Attacks . | . . . . . Impact . | . . . . . Slashing . | . . . . . Piercing . | . . . . . Sneak Attacks . | . . . . . Combat Hostiles . | . . . . . Follow-up Attacks . | . . . . . Damage Inflicted 2921 | 13 1185 380 1343 . Guns 718 | 13 705 . . . Cannons 1315 | . . . 1315 . Explosions 717 | . 429 260 28 . Melee . | . . . . . Ramming 3 | . 3 . . . Kinetic 2033 | 13 705 . 1315 . Thermal 168 | . 48 120 . . Explosive 717 | . 429 260 28 . Electromagnetic . | . . . . . Impact . | . . . . . Slashing . | . . . . . Piercing . | . . . . . Highest Corruption 2 | . . 2 . . Average Corruption 2 | . . 2 . . Corruption Purged . | . . . . . Effects 8 | . . 8 . . Message Errors 4 | . . 4 . . Energy Discharges 1 | . . 1 . . Data Loss (minor) 3 | . . 3 . . Overload Shots . | . . . . . Overflow Damage 37 | . 13 15 9 . Projectiles 17 | . . 8 9 . Explosions 20 | . 13 7 . . Melee . | . . . . . Knockbacks 8 | . . . 8 . Impact . | . . . . . Kinetic 8 | . . . 8 . Secondary . | . . . . . Self-Inflicted Damage 95 | . 56 39 . . Shots 3 | . 2 1 . . Rammed 1 | . 1 . . . Targets Rammed 1 | . 1 . . . Kicked . | . . . . . Crushed . | . . . . . Highest Temperature 258 | . 91 182 258 . Average Temperature 57 | . 15 66 66 . Received Heat Transfer 995 | . 375 20 591 9 Siege Activations . | . . . . . Robots Corrupted . | . . . . . Combat Hostiles . | . . . . . Parts Fried . | . . . . . Impact Corruptions . | . . . . . Robots Melted . | . . . . . Combat Hostiles . | . . . . . Parts Melted . | . . . . . Heat Transferred 350 | . 100 250 . . Parts Sabotaged . | . . . . . Parts Stolen . | . . . . . Parts Stripped . | . . . . . Power Chain Reactions . | . . . . . Missiles Intercepted . | . . . . . Alert | -11 -10 -10 -9 -8 ------- Run | Scr Mat Min Mat Mat Peak Influence 333 | . 227 116 333 93 Average Influence 94 | . 100 55 160 79 Maximum Alert Level 1 | . 1 . 1 . Low Security (%) 85 | . . . . . Level 1 14 | . . . . . Level 2 . | . . . . . Level 3 . | . . . . . Level 4 . | . . . . . Level 5 . | . . . . . High Security . | . . . . . Max Security . | . . . . . Squads Dispatched 6 | . 1 . 4 1 Investigation 2 | . . . 2 . Extermination . | . . . . . Reinforcement 4 | . 1 . 2 1 Assault . | . . . . . Garrison . | . . . . . Intercept . | . . . . . Construction Impeded 1 | . . . 1 . Haulers Reinforced . | . . . . . Stealth | -11 -10 -10 -9 -8 --------- Run | Scr Mat Min Mat Mat Distress Signals 6 | . 2 . 3 1 Communications Jammed . | . . . . . Distress Signals . | . . . . . Times Spotted 65 | . 21 11 29 4 Peak Tracking Total 7 | . 3 4 7 4 Tactical Retreats 2 | . . . 2 . Traps | -11 -10 -10 -9 -8 ------- Run | Scr Mat Min Mat Mat Traps Triggered 2 | . . . 2 . Indirectly . | . . . . . Trap Hack Attempts . | . . . . . Triggered . | . . . . . Disarmed . | . . . . . Reprogrammed . | . . . . . Reused . | . . . . . Traps Extracted . | . . . . . Installed 3 | . . 3 . . Triggered . | . . . . . Machines | -11 -10 -10 -9 -8 ---------- Run | Scr Mat Min Mat Mat Machines Disabled . | . . . . . Max in Single Turn . | . . . . . Machines Sabotaged . | . . . . . Garrisons Compromised . | . . . . . Overloaded Fab Kills . | . . . . . Fab Network Shutdowns . | . . . . . Hacking | -11 -10 -10 -9 -8 --------- Run | Scr Mat Min Mat Mat Machines Accessed . | . . . . . Terminals . | . . . . . Fabricators . | . . . . . Repair Stations . | . . . . . Recycling Units . | . . . . . Scanalyzers . | . . . . . Garrison Access . | . . . . . Total Hacks . | . . . . . Successful . | . . . . . Failed . | . . . . . Catastrophic . | . . . . . Database Lockouts . | . . . . . Manual . | . . . . . Terminals . | . . . . . Fabricators . | . . . . . Repair Stations . | . . . . . Recycling Units . | . . . . . Scanalyzers . | . . . . . Garrison Access . | . . . . . Terminal Hacks . | . . . . . Fabricator Hacks . | . . . . . Repair Station Hacks . | . . . . . Recycling Unit Hacks . | . . . . . Scanalyzer . | . . . . . Garrison Access Hacks . | . . . . . Unauthorized Hacks . | . . . . . Terminals . | . . . . . Fabricators . | . . . . . Repair Stations . | . . . . . Recycling Units . | . . . . . Scanalyzers . | . . . . . Garrison Access . | . . . . . Data Cores Recovered . | . . . . . Used . | . . . . . Hacking Detections . | . . . . . Full Trace Events . | . . . . . Feedback Events . | . . . . . Feedback Blocked . | . . . . . Robot Schematics Acquired . | . . . . . Robots Built . | . . . . . Matter . | . . . . . Time . | . . . . . Total Robot Build Rating . | . . . . . Part Schematics Acquired . | . . . . . Parts Built . | . . . . . Matter . | . . . . . Time . | . . . . . Total Part Build Rating . | . . . . . Parts Repaired . | . . . . . Time . | . . . . . Parts Recycled . | . . . . . Recycled Matter . | . . . . . Retrieved Matter . | . . . . . Retrieved Components . | . . . . . Parts Scanalyzed . | . . . . . Part Schematics Acquired . | . . . . . Parts Damaged . | . . . . . Bothacking | -11 -10 -10 -9 -8 ------------ Run | Scr Mat Min Mat Mat Used RIF Installer . | . . . . . Robots Hacked . | . . . . . Non-combat . | . . . . . Combat . | . . . . . Robot Hacks Applied . | . . . . . Relay Couplers Released . | . . . . . Robots Rewired . | . . . . . Allies Hacked . | . . . . . Hacks Repelled . | . . . . . Allies | -11 -10 -10 -9 -8 -------- Run | Scr Mat Min Mat Mat Total Allies 5 | . . 5 . . Largest Group 3 | . . 3 3 . Highest-Rated Group 59 | . . 59 59 . Highest-Rated Ally 31 | . . 31 31 . Total Orders . | . . . . . Ally Attacks 19 | . . 17 2 . Total Damage 235 | . . 213 22 . Kills 7 | . . 7 . . Allies Corrupted . | . . . . . Allies Melted . | . . . . . Intel | -11 -10 -10 -9 -8 ------- Run | Scr Mat Min Mat Mat Robot Analysis Total . | . . . . . Derelict Logs Recovered 2 | . . 2 . . Drone Launches . | . . . . . Drone Recoveries . | . . . . . Exploration | -11 -10 -10 -9 -8 ------------- Run | Scr Mat Min Mat Mat Turns Passed 2582 | 87 670 1043 702 80 Spaces Moved 1244 | 46 280 571 299 48 Core 43 | 38 . . 5 . Treads 991 | . 78 571 294 48 Legs 210 | 8 202 . . . Wheels . | . . . . . Hover . | . . . . . Flight . | . . . . . Fastest Speed 50 | 50 120 160 160 160 Average Speed 159 | 156 149 160 167 160 Slowest Speed 650 | 200 180 160 650 160 Overloaded Moves . | . . . . . Propulsion Burnouts . | . . . . . Robots Hopped . | . . . . . Cave-ins Triggered . | . . . . . Exploration Rate (%) 39 | 4 52 99 32 12 Regions Visited 4 Branch Regions 1 Pre-discovered Areas 2 | . . 2 . . Known Exits Taken . | . . . . . Unknown Exits Taken 4 | 1 1 1 1 . Scrap Searched 1 | . . 1 . . Spaces Dug . | . . . . . Terrain Destroyed 133 | . 60 34 39 . Melee . | . . . . . Projectile 29 | . . . 29 . AOE 104 | . 60 34 10 . Actions | -11 -10 -10 -9 -8 --------- Run | Scr Mat Min Mat Mat Total 1609 | 60 410 681 407 51 Wait 126 | . 8 83 35 . Move 1240 | 45 279 570 298 48 Hop . | . . . . . Pick Up 41 | 8 13 10 10 . Fast Attach 3 | . . . 3 . Attach 19 | 6 7 1 2 3 Detach 1 | . 1 . . . Swap 9 | . 4 2 3 . Drop 15 | . 2 6 7 . Fire 151 | 1 95 6 49 . Melee . | . . . . . Ram . | . . . . . Kick 1 | . 1 . . . Crush . | . . . . . Escape Stasis . | . . . . . Rewire . | . . . . . Trap 3 | . . 3 . . Miscellaneous . | . . . . . Route ------- -11/Scrapyard -10/Materials (discovered 2 exits: [*Mat] / [*Min]) -10/Mines (discovered 2 exits: [*Mat x2]) -9/Materials (discovered 3 exits: [*Mat x2] / [*Sto]) -8/Materials History --------- Turn | Location | Event 8 | -11/Scrapyard | Discovered new exit (range 15) 88 | -11/Scrapyard | Entered Materials 317 | -10/Materials | Build established: Mutant 462 | -10/Materials | Core integrity fell below 50% 561 | -10/Materials | Core integrity fell below 20% 578 | -10/Materials | Discovered new exit (range 16) 734 | -10/Materials | Discovered new exit (range 7) 758 | -10/Materials | Entered Mines 875 | -10/Mines | Discovered new exit (range 15) 878 | -10/Mines | Found a hidden stash of uninstalled traps 904 | -10/Mines | Learned Materials stockpile data 1098 | -10/Mines | Assisted by bots powering up and referring to "LRC-V3" 1253 | -10/Mines | Assembled infested the area 1258 | -10/Mines | Assisted by a Guerilla fighting off Assembled 1424 | -10/Mines | Discovered new exit (range 10) 1451 | -10/Mines | Learned location of Storage (-9) 1801 | -10/Mines | Entered Materials 1801 | -9/Materials | Accompanied by 3 allies 1801 | -9/Materials | Evolved 2 slots: Propulsion x1, Utility x1 1806 | -9/Materials | Led the pair of lost Derelicts to an unsafe place 2043 | -9/Materials | Discovered new exit (range 11) 2113 | -9/Materials | Discovered new exit (range 14) 2466 | -9/Materials | Discovered new exit (range 13) 2495 | -9/Materials | Core integrity fell below 50% 2503 | -9/Materials | Entered another Materials area 2503 | -8/Materials | Evolved 2 slots: Propulsion x1, Utility x1 2515 | -8/Materials | Lost 6 parts (1p3n2w) 2583 | -8/Materials | Self-destructed Last Messages --------------- 02453_ U-05 Engineer lays Concrete. 02454_ Lgt. Treads destroyed. 02466_ EXIT=FOUND 02466_ Lgt. Treads destroyed. 02471_ U-05 Engineer lays Concrete. 02480_ Lgt. Treads destroyed. 02484_ Critical hit. 02484_ Assault Cannon destroyed. 02488_ U-05 Engineer lays Concrete. 02492_ U-05 Engineer destroyed. PARAMETERS=PROPULSION_1,UTILITY_1 LOCATION=UNKNOWN GOAL=ESCAPE 02509_ O-16 Technician: "IFF HANDSHAKE FAILED. SECURING TERMINAL." 02509_ O-16 Technician uses terminal to summon reinforcements. 02509_ ALERT: Hostiles spotted, dispatching reinforcements to Terminal M011. 02509_ O-16 Technician locks terminal. 02574_ W-25 Informer sends out distress signal. 02581_ Slug penetrates Wall. Map ----- +----------------------------------------------------+ | ?????# "" #????????????????????????????????? | | ????## """ #????????????????????????????????? | | ????"" "" *#????????????????????????????????? | | ????"T "" #????????????????????????????????? | | ????"" " #????????????????????????????????? | | ?????# #????????????????? ??????????????? | | ?????# #??????????????? ??????????????? | | ?##### ##########+### ?????????????? | | ?# ?????????????? | | ?# ????????????? | | ?# ????????????? | | ###### #### ????????????? | | ! # #??# #########?????????????????? | | # #??# #?????????????????????????? | | # #??# #?????????????????????????? | | [ # " " #??# #?????????????????????????? | | + "R" #??# #?????????????????????????? | | # """ #??# #?????????????????????????? | | # #########?# #?????????????????????????? | | # #?# # #?????????????????????????? | | + #?# # #?????????????????????????? | | ##########?# + #?????????????????????????? | | ???????????# # #?????#???????????????????? | | ???????????# # ##### ######??????????????? | | ???????????#######?# w +????????? | | ???????????????????##+###@### ##??????????????? | | ??????????????????? #??????#???????????????? | | ????????????????? #??????????????????????? | | ????????????????# """ """ #??????????????????????? | | ????????????????# """ """ #??????????????????????? | | ????????????????# """ """ #??????????????????????? | | ????????????????# #??????????????????????? | | ????????????????# ! #??????????????????????? | | ?????????????????? #??????????????????????? | | ?????????????????#??###?##???????????????????????? | | ?????????????????????????????????????????????????? | | ?????????????????????????????????????????????????? | | ?????????????????????????????????????????????????? | | ?????????????????????????????????????????????????? | | ?????????????????????????????????????????????????? | | ?????????????????????????????????????????????????? | | ?????????????????????????????????????????????????? | | ?????????????????????????????????????????????????? | | ?????????????????????????????????????????????????? | | ?????????????????????????????????????????????????? | | ?????????????????????????????????????????????????? | | ?????????????????????????????????????????????????? | | ?????????????????????????????????????????????????? | | ?????????????????????????????????????????????????? | | ?????????????????????????????????????????????????? | +----------------------------------------------------+ Best States ------------- Heat Dissipation 39 Energy Generation 14 Energy Capacity 250 Matter Stores 300 Matter Capacity 300 Sight Range 16 Terrain Scan Density 10 Armor Coverage 150 Utility Shielding 66 Evasion (%) 50 Recoil Reduction 3 Item Schematics ----------------- None Robot Schematics ------------------ None Fabricated ------------ Nothing Alien Tech Used ----------------- None Achievements -------------- None Challenges ------------ None Game ------ Seed NuclearAlloyShield Manual? 0 Play Time 00:18:04 Cumulative 52.4 hours Start 2019.10.29 @ 22:42:25 End 2019.10.29 @ 22:59:56 Sessions 1 Manual Loads 0 Difficulty Rogue Special Mode None Game No. 84 Rogue 84 Adventurer 0 Explorer 0 Win Type - Total 0 Types 0/0/0/0/0/0/0 Lore% 27 Gallery% 35 Achievement% 28 Wizard Run 0 Options --------- ASCII 0 Keyboard 0 Movement Mouse Keybinds 0 Fullscreen 1 Font 18/SmallcapsGlow Map View 76x50 Tactical HUD 1 Map Filters NONE Filters NONE Steam 1 RUN: a7d51bfa-1bf4-49d8-96c4-cf2a3ffacfce